bitfinex/quotes_SOLUSD_20220101
["timestamp","ask_amount","ask_price","bid_price","bid_amount"]
[1641013814235,1.65641056,171.54,171.46,24.29482198]
[1641013814434,2.15641056,171.54,171.46,24.29482198]
[1641013814634,1.65641056,171.54,171.46,24.29482198]
[1641013814835,2.15641056,171.54,171.46,24.03482198]
[1641013815236,2.15641056,171.54,171.45,0.334097]
[1641013815636,2.41641056,171.54,171.45,0.334097]
[1641013816035,1.65641056,171.52,171.45,0.334097]
[1641013816235,10.40531056,171.52,171.45,0.334097]
[1641013816437,11.16531056,171.52,171.45,0.334097]
[1641013818061,11.16531056,171.52,171.45,9.082697]
[1641013818259,10.66531056,171.52,171.45,9.082697]
[1641013818659,9.0089,171.52,171.45,9.082697]
[1641013818859,9.5089,171.52,171.45,9.082697]
[1641013819260,11.16531056,171.52,171.45,9.082697]
[1641013819959,11.16531056,171.52,171.45,10.429697]
[1641013823362,11.16531056,171.52,171.45,10.689697]
[1641013823363,1.65641056,171.52,171.45,10.689697]
[1641013823563,1.65641056,171.53,171.45,10.689697]
[1641013824163,1.65641056,171.54,171.45,10.689697]
[1641013827867,2.15641056,171.54,171.45,10.689697]
[1641013828770,10.90431056,171.54,171.45,10.429697]
[1641013828973,11.16431056,171.54,171.45,10.429697]
[1641013829972,11.16431056,171.54,171.45,10.689697]
[1641013830373,1.65641056,171.53,171.45,10.689697]
[1641013830574,10.66471056,171.53,171.45,10.689697]
[1641013830779,11.16471056,171.53,171.45,10.689697]
[1641013831376,11.16471056,171.53,171.45,10.429697]
[1641013831777,1.65641056,171.52,171.45,10.429697]
[1641013831978,11.16561056,171.52,171.45,10.429697]
[1641013833780,9.5092,171.52,171.45,10.429697]
[1641013834382,11.16561056,171.52,171.45,10.429697]
[1641013834982,9.5092,171.52,171.45,10.429697]
[1641013835991,11.16561056,171.52,171.45,10.429697]
[1641013837387,11.16561056,171.52,171.45,9.082697]
[1641013838994,10.66561056,171.52,171.45,9.082697]
[1641013839194,11.16561056,171.52,171.45,9.082697]
[1641013840999,11.16561056,171.52,171.45,0.334097]
[1641013844914,10.66561056,171.52,171.45,9.082697]
[1641013845615,9.0092,171.52,171.45,9.082697]
[1641013855922,8.7484,171.53,171.45,9.342697]
[1641013856123,1.65641056,171.54,171.45,9.342697]
[1641013856325,1.65641056,171.54,171.45,10.76939068]
[1641013856725,1.65641056,171.57,171.45,10.76939068]
[1641013857526,1.65641056,171.57,171.51,8.7435]
[1641013857726,1.65641056,171.58,171.51,8.7435]
[1641013857928,1.65641056,171.58,171.51,9.0035]
[1641013858927,1.65641056,171.6,171.51,9.0035]
[1641013859130,1.65641056,171.6,171.56,8.7435]
[1641013861531,1.91641056,171.6,171.55,8.7443]
[1641013863332,1.65641056,171.59,171.55,8.7443]
[1641013868438,0.26,171.6,171.55,8.7443]
[1641013868637,9.0043,171.61,171.55,8.7443]
[1641013868838,9.5043,171.61,171.54,8.7444]
[1641013870847,9.0043,171.61,171.54,8.7444]
[1641013871342,9.5043,171.61,171.54,8.7444]
[1641013872945,9.0043,171.61,171.54,8.7444]
[1641013874146,9.5043,171.61,171.54,8.7444]
[1641013876546,9.0043,171.61,171.54,8.7444]
[1641013878776,1.65641056,171.59,171.54,8.7444]
[1641013879275,1.65641056,171.58,171.54,8.7444]
[1641013880477,1.65641056,171.59,171.54,8.7444]
[1641013881581,1.65641056,171.59,171.54,9.0044]
[1641013882384,1.65641056,171.6,171.54,9.0044]
[1641013882883,1.65641056,171.6,171.54,44.03630782]
[1641013883284,1.65641056,171.6,171.54,15.5084]
[1641013884285,1.65641056,171.62,171.54,15.5084]
[1641013885086,1.65641056,171.62,171.55,1.3525]
[1641013885386,1.65641056,171.62,171.57,8.7427]
[1641013885586,1.65641056,171.62,171.57,9.0027]
[1641013885986,1.65641056,171.61,171.57,9.0027]
[1641013887788,1.65641056,171.62,171.57,9.0027]
[1641013890588,1.65641056,171.63,171.57,9.0027]
[1641013895097,8.7422,171.65,171.57,9.0027]
[1641013896716,10.39861056,171.65,171.57,9.0027]
[1641013896922,10.89861056,171.65,171.57,9.0027]
[1641013897122,10.39861056,171.65,171.57,9.0027]
[1641013898224,8.7422,171.65,171.57,9.0027]
[1641013898423,1.65641056,171.63,171.57,9.0027]
[1641013904731,1.65641056,171.64,171.57,9.0027]
[1641013907339,1.65641056,171.64,171.57,17.98039368]
[1641013907739,1.65641056,171.64,171.59,27.80067135]
[1641013907943,1.65641056,171.64,171.61,8.7393]
[1641013908345,1.65641056,171.64,171.62,0.39956246]
[1641013908743,3.28671724,171.68,171.62,0.39956246]
[1641013908744,1.65641056,171.68,171.62,0.39956246]
[1641013908943,1.65641056,171.68,171.64,8.7394]
[1641013909345,1.65641056,171.68,171.64,8.9994]
[1641013913953,1.65641056,171.68,171.64,8.7394]
[1641013915178,1.65641056,171.68,171.64,8.9994]
[1641013915780,8.7397,171.7,171.64,8.9994]
[1641013916579,8.7397,171.7,171.63,8.74]
[1641013916777,9.2397,171.7,171.61,1.3286]
[1641013916981,16.9017,171.7,171.61,1.3286]
[1641013917580,16.6417,171.7,171.61,1.3286]
[1641013917982,16.9017,171.7,171.61,1.5886]
[1641013918180,1.2472,171.69,171.61,1.5886]
[1641013918383,8.7412,171.67,171.61,10.3296]
[1641013919582,8.7408,171.68,171.61,10.3296]
[1641013921386,9.9874,171.69,171.61,10.3296]
[1641013925492,1.65641056,171.68,171.61,10.3296]
[1641013927398,1.65641056,171.67,171.61,10.3296]
[1641013927598,1.65641056,171.67,171.61,10.0696]
[1641013927799,2.15641056,171.67,171.61,1.3286]
[1641013927997,1.65641056,171.67,171.61,1.3286]
[1641013928296,10.39761056,171.67,171.61,1.3286]
[1641013929098,10.39761056,171.67,171.61,1.5886]
[1641013929700,10.39761056,171.67,171.61,10.3295]
[1641013929900,1.65641056,171.67,171.61,10.3295]
[1641013931109,1.65641056,171.66,171.61,10.3295]
[1641013933813,10.39751056,171.67,171.61,10.3295]
[1641013938418,9.39751056,171.67,171.61,10.3295]
[1641013939321,9.39751056,171.67,171.61,1.5886]
[1641013939718,9.89751056,171.67,171.61,1.5886]
[1641013940417,9.39751056,171.67,171.61,1.5886]
[1641013941240,9.89751056,171.67,171.61,1.5886]
[1641013946449,1.65641056,171.65,171.61,1.5886]
[1641013947245,1.65641056,171.65,171.54,30.3771]
[1641013947446,2.15641056,171.65,171.55,1.2963]
[1641013948344,10.89861056,171.65,171.55,10.0395]
[1641013948545,10.89861056,171.65,171.55,1.5563]
[1641013948747,1.65641056,171.64,171.55,1.5563]
[1641013948947,2.15641056,171.64,171.55,1.2963]
[1641013949145,3.76961056,171.64,171.55,1.2963]
[1641013949345,3.76961056,171.64,171.53,152.6465]
[1641013949548,8.7448,171.6,171.53,153.8742]
[1641013949751,3.76961056,171.64,171.48,1.251]
[1641013949950,1.65641056,171.62,171.48,2.5617]
[1641013950151,1.65641056,171.62,171.48,152.6968]
[1641013950455,2.41641056,171.62,171.48,152.6968]
[1641013950650,2.41641056,171.62,171.49,22.61001839]
[1641013950851,8.747,171.56,171.49,22.61001839]
[1641013951249,9.247,171.56,171.49,22.61001839]
[1641013951652,1.65641056,171.59,171.49,22.87001839]
[1641013951860,2.15641056,171.59,171.49,31.35671839]
[1641013952053,2.41641056,171.59,171.49,31.35671839]
[1641013952252,1.65641056,171.58,171.49,31.35671839]
[1641013952454,2.15641056,171.58,171.49,32.58621839]
[1641013952653,2.41641056,171.58,171.49,32.58621839]
[1641013952953,2.15641056,171.58,171.49,32.58621839]
[1641013953154,2.15641056,171.58,171.49,32.84621839]
[1641013953354,8.7463,171.57,171.49,32.84621839]
[1641013954355,2.15641056,171.58,171.49,32.84621839]
[1641013954555,9.2457,171.58,171.49,32.84621839]
[1641013954755,8.7457,171.58,171.49,32.84621839]
[1641013954956,1.65641056,171.59,171.49,32.84621839]
[1641013955156,1.65641056,171.59,171.5,1.42669368]
[1641013955355,1.65641056,171.59,171.54,8.7432]
[1641013955562,1.65641056,171.59,171.54,9.0032]
[1641013955758,1.65641056,171.62,171.54,9.0032]
[1641013955957,1.65641056,171.62,171.54,10.42989368]
[1641013956666,1.65641056,171.63,171.54,10.42989368]
[1641013957157,1.65641056,171.66,171.54,10.42989368]
[1641013957359,1.65641056,171.66,171.6,8.74]
[1641013957558,1.65641056,171.66,171.6,16.743]
[1641013957758,1.65641056,171.66,171.6,18.16969368]
[1641013959784,1.65641056,171.66,171.6,9.42969368]
[1641013959986,1.65641056,171.65,171.6,0.26]
[1641013960384,1.65641056,171.65,171.57,74.3799]
[1641013960583,144.6795,171.72,171.57,74.3799]
[1641013960584,1.65641056,171.66,171.57,74.3799]
[1641013960786,1.65641056,171.66,171.58,1.42669368]
[1641013960984,1.65641056,171.66,171.58,1.68669368]
[1641013961188,1.65641056,171.65,171.58,1.68669368]
[1641013961386,1.65641056,171.65,171.6,8.7412]
[1641013961590,1.65641056,171.65,171.6,9.0012]
[1641013962386,10.39821056,171.66,171.6,9.0012]
[1641013963190,10.89821056,171.66,171.6,9.0012]
[1641013963387,10.89821056,171.66,171.6,8.7412]
[1641013963587,10.89821056,171.66,171.59,8.742]
[1641013963789,11.15821056,171.66,171.57,74.1199]
[1641013963987,10.39821056,171.66,171.57,74.1199]
[1641013964189,1.65641056,171.66,171.57,75.54659368]
[1641013964988,1.65641056,171.69,171.61,8.7409]
[1641013965390,1.65641056,171.69,171.61,9.0009]
[1641013965991,1.65641056,171.68,171.61,10.2783]
[1641013966191,10.39711056,171.68,171.61,9.0009]
[1641013966394,10.89711056,171.68,171.61,9.0009]
[1641013966791,1.65641056,171.68,171.61,9.0009]
[1641013967791,1.65641056,171.66,171.61,9.0009]
[1641013968091,1.65641056,171.69,171.61,9.0009]
[1641013968493,2.15641056,171.69,171.61,9.0009]
[1641013968893,1.65641056,171.67,171.61,9.0009]
[1641013970696,10.39761056,171.67,171.61,9.0009]
[1641013971496,10.39761056,171.67,171.61,0.26]
[1641013971696,10.89761056,171.67,171.61,0.26]
[1641013971897,10.39761056,171.67,171.6,9.0016]
[1641013972296,10.89761056,171.67,171.6,9.0016]
[1641013972596,1.65641056,171.66,171.6,9.0016]
[1641013975698,1.65641056,171.68,171.6,9.0016]
[1641013976701,1.65641056,171.67,171.6,9.0016]
[1641013977600,1.65641056,171.68,171.6,9.0016]
[1641013980807,10.39701056,171.68,171.6,9.0016]
[1641013981004,10.89701056,171.68,171.6,9.0016]
[1641013981907,1.65641056,171.67,171.6,9.0016]
[1641013983107,1.65641056,171.68,171.6,9.0016]
[1641013983706,1.65641056,171.68,171.6,0.26]
[1641013983911,2.15641056,171.68,171.6,0.26]
[1641013984207,2.15641056,171.68,171.59,0.26]
[1641013984613,1.65641056,171.67,171.58,78.2883]
[1641013984810,1.65641056,171.67,171.6,8.7408]
[1641013985109,1.65641056,171.67,171.6,9.0008]
[1641013985309,1.65641056,171.67,171.6,0.26]
[1641013985545,2.15641056,171.67,171.6,0.26]
[1641013985709,1.65641056,171.66,171.59,1.4876]
[1641013985910,1.65641056,171.66,171.59,1.2276]
[1641013986109,1.65641056,171.66,171.59,1.4876]
[1641013987112,1.65641056,171.67,171.59,10.2289]
[1641013987712,1.65641056,171.66,171.59,10.2289]
[1641013989113,1.65641056,171.66,171.59,9.9689]
[1641013989311,1.65641056,171.66,171.59,1.2276]
[1641013989512,1.65641056,171.65,171.59,1.2276]
[1641013989715,1.65641056,171.65,171.57,8.7421]
[1641013989912,2.15641056,171.65,171.57,8.7421]
[1641013990512,2.15641056,171.65,171.57,9.0021]
[1641013990711,10.89891056,171.65,171.57,9.0021]
[1641013990912,10.89891056,171.65,171.58,1.3458]
[1641013991112,10.89891056,171.65,171.58,1.6058]
[1641013991512,1.65641056,171.64,171.58,1.6058]
[1641013991711,10.39911056,171.64,171.58,1.6058]
[1641013993717,8.7427,171.64,171.58,1.6058]
[1641013995120,9.2427,171.64,171.58,1.6058]
[1641013995719,0.5,171.64,171.58,1.6058]
[1641013995921,9.2422,171.65,171.58,1.6058]
[1641013996821,0.5,171.65,171.58,10.3476]
[1641013997024,8.7418,171.66,171.58,10.3476]
[1641013998223,10.39751056,171.67,171.58,10.3476]
[1641013998423,1.65641056,171.67,171.58,10.3476]
[1641013998828,1.65641056,171.68,171.58,10.3476]
[1641013999430,2.15641056,171.68,171.58,10.3476]
[1641014000647,10.89701056,171.68,171.58,10.3476]
[1641014002954,1.65641056,171.68,171.58,10.3476]
[1641014003353,10.39651056,171.69,171.58,10.3476]
[1641014003954,1.65641056,171.7,171.58,10.3476]
[1641014007657,8.7392,171.71,171.58,10.3476]
[1641014009462,9.2392,171.71,171.58,10.3476]
[1641014009663,9.4992,171.71,171.58,10.3476]
[1641014010063,10.89561056,171.71,171.58,10.3476]
[1641014010665,1.65641056,171.7,171.58,10.3476]
[1641014010866,8.7405,171.69,171.58,10.0876]
[1641014011269,9.2405,171.69,171.58,10.0876]
[1641014011464,2.15641056,171.7,171.58,10.0876]
[1641014012266,2.15641056,171.7,171.58,10.3476]
[1641014012568,1.65641056,171.7,171.58,10.3476]
[1641014013266,74.28431056,171.72,171.58,10.3476]
[1641014013672,83.02281056,171.72,171.58,10.3476]
[1641014013869,83.52281056,171.72,171.58,10.3476]
[1641014014367,83.02281056,171.72,171.58,10.3476]
[1641014014570,1.65641056,171.71,171.58,10.3476]
[1641014015168,83.02281056,171.72,171.58,10.3476]
[1641014015771,81.3664,171.72,171.58,10.3476]
[1641014017072,81.8664,171.72,171.58,10.3476]
[1641014017271,81.3664,171.72,171.58,10.3476]
[1641014017473,81.8664,171.72,171.58,10.3476]
[1641014017872,83.52281056,171.72,171.58,10.3476]
[1641014018576,83.02281056,171.72,171.58,10.3476]
[1641014018776,1.65641056,171.72,171.59,1.42669368]
[1641014018976,1.65641056,171.72,171.65,8.7362]
[1641014019294,1.65641056,171.72,171.66,26.06984812]
[1641014019494,1.65641056,171.72,171.66,27.7565418]
[1641014019698,1.65641056,171.72,171.67,1.42669368]
[1641014020094,1.65641056,171.75,171.67,1.68669368]
[1641014020394,1.65641056,171.75,171.69,8.7359]
[1641014020595,1.65641056,171.75,171.69,8.9959]
[1641014020993,1.65641056,171.76,171.69,8.9959]
[1641014021593,10.89291056,171.76,171.69,8.9959]
[1641014023203,10.39291056,171.76,171.69,8.9959]
[1641014023395,1.65641056,171.76,171.69,8.9959]
[1641014023597,8.7361,171.77,171.69,8.9959]
[1641014023799,9.2361,171.77,171.69,8.9959]
[1641014024399,9.2361,171.77,171.69,0.26]
[1641014024601,9.2361,171.77,171.67,10.3322]
[1641014026001,10.89251056,171.77,171.67,10.3322]
[1641014029311,1.65641056,171.76,171.67,10.3322]
[1641014029514,10.39341056,171.76,171.67,10.3322]
[1641014029720,10.89341056,171.76,171.67,10.3322]
[1641014030115,1.65641056,171.76,171.67,10.3322]
[1641014030315,1.65641056,171.77,171.67,10.3322]
[1641014030614,1.65641056,171.77,171.67,90.0133]
[1641014031014,1.65641056,171.78,171.67,90.0133]
[1641014031213,2.15641056,171.78,171.67,90.0133]
[1641014032615,8.7364,171.77,171.67,90.0133]
[1641014033014,9.2364,171.77,171.67,90.0133]
[1641014033815,8.7364,171.77,171.67,90.0133]
[1641014034420,9.2364,171.77,171.67,90.0133]
[1641014035418,1.65641056,171.75,171.67,90.0133]
[1641014036622,1.65641056,171.75,171.67,91.43999368]
[1641014037022,73.8245,171.81,171.67,91.43999368]
[1641014037023,1.65641056,171.76,171.67,91.43999368]
[1641014037223,1.65641056,171.76,171.67,97.47699368]
[1641014037422,1.65641056,171.76,171.67,96.97699368]
[1641014037622,1.65641056,171.78,171.67,96.97699368]
[1641014038750,1.65641056,171.79,171.67,90.93999368]
[1641014038947,1.65641056,171.79,171.67,89.5133]
[1641014039347,1.65641056,171.78,171.67,90.67999368]
[1641014040551,1.65641056,171.78,171.67,90.93999368]
[1641014040749,1.65641056,171.77,171.67,90.93999368]
[1641014041153,1.65641056,171.78,171.67,90.93999368]
[1641014043661,8.7348,171.8,171.67,90.93999368]
[1641014044057,10.0335,171.8,171.67,90.93999368]
[1641014045056,1.2987,171.8,171.67,90.93999368]
[1641014053264,2.95511056,171.8,171.67,90.93999368]
[1641014053661,1.65641056,171.79,171.67,90.93999368]
[1641014058067,2.95511056,171.8,171.67,90.93999368]
[1641014068802,2.95511056,171.8,171.67,90.67999368]
[1641014069101,3.21511056,171.8,171.67,89.2533]
[1641014069304,3.71511056,171.8,171.67,8.7374]
[1641014069505,1.65641056,171.78,171.67,8.7374]
[1641014069704,1.65641056,171.78,171.66,8.7375]
[1641014069908,2.41641056,171.78,171.62,1.42669368]
[1641014070104,1.336,171.77,171.62,78.21869368]
[1641014070305,1.336,171.77,171.62,105.9154]
[1641014070505,3.75241056,171.77,171.62,105.9154]
[1641014070704,3.75241056,171.77,171.63,1.2339]
[1641014071111,1.65641056,171.76,171.63,1.2339]
[1641014071406,8.7376,171.74,171.66,8.7376]
[1641014071816,1.65641056,171.75,171.66,8.7376]
[1641014072214,1.65641056,171.75,171.66,10.16429368]
[1641014072413,1.65641056,171.78,171.66,10.16429368]
[1641014072614,2.99201056,171.78,171.67,28.62424183]
[1641014073014,2.99201056,171.78,171.68,1.42669368]
[1641014073415,2.99201056,171.78,171.68,1.68669368]
[1641014073714,2.99201056,171.78,171.69,8.7359]
[1641014073715,1.65641056,171.77,171.69,8.7359]
[1641014074115,1.65641056,171.77,171.69,8.9959]
[1641014074617,11.72771056,171.78,171.69,8.9959]
[1641014075317,2.99201056,171.78,171.69,8.9959]
[1641014075719,1.3356,171.78,171.69,8.9959]
[1641014076921,10.0712,171.78,171.69,8.9959]
[1641014077921,1.3356,171.78,171.69,13.8439]
[1641014079022,1.8356,171.78,171.69,13.8439]
[1641014079223,1.8356,171.78,171.69,8.9959]
[1641014079629,10.5711,171.78,171.69,8.9959]
[1641014079826,10.5711,171.78,171.69,0.26]
[1641014080022,10.5711,171.78,171.68,8.9966]
[1641014080823,12.22751056,171.78,171.68,8.9966]
[1641014081322,11.72751056,171.78,171.68,8.9966]
[1641014082323,11.72751056,171.78,171.68,10.42329368]
[1641014082523,10.0711,171.78,171.68,10.42329368]
[1641014083123,10.0711,171.78,171.69,1.28]
[1641014083323,10.0711,171.78,171.7,8.7356]
[1641014083534,10.0711,171.78,171.7,8.9956]
[1641014083725,10.0711,171.78,171.7,0.26]
[1641014083923,10.5711,171.78,171.7,0.26]
[1641014084324,10.5711,171.78,171.69,1.54]
[1641014084729,10.0711,171.78,171.69,1.54]
[1641014086325,10.5711,171.78,171.69,0.26]
[1641014086527,10.5711,171.78,171.66,1.3089]
[1641014086725,10.0711,171.78,171.69,8.7358]
[1641014087125,10.0711,171.78,171.69,8.9958]
[1641014088426,10.5711,171.78,171.69,0.26]
[1641014088931,1.65641056,171.77,171.68,8.9962]
[1641014089227,10.39281056,171.77,171.68,8.9962]
[1641014091530,1.65641056,171.77,171.68,8.9962]
[1641014092532,2.15641056,171.77,171.68,0.26]
[1641014093032,2.15641056,171.77,171.67,8.9967]
[1641014093633,10.89251056,171.77,171.67,8.9967]
[1641014094633,10.89251056,171.77,171.68,9.9863]
[1641014095034,10.89251056,171.77,171.68,10.2463]
[1641014096735,10.89251056,171.77,171.68,1.51]
[1641014097142,10.89251056,171.77,171.68,1.25]
[1641014097943,8.7371,171.75,171.68,1.25]
[1641014098367,9.2371,171.75,171.65,1.3166]
[1641014098570,9.2371,171.75,171.65,2.8187]
[1641014099368,10.89351056,171.75,171.65,2.8187]
[1641014099570,1.65641056,171.75,171.65,12.98299368]
[1641014100870,1.3005,171.76,171.65,12.98299368]
[1641014102072,1.3005,171.76,171.65,12.72299368]
[1641014103374,1.3005,171.76,171.65,12.98299368]
[1641014103572,1.3005,171.76,171.65,12.72299368]
[1641014104977,1.3005,171.76,171.65,12.98299368]
[1641014105573,1.3005,171.76,171.65,11.5563]
[1641014105977,1.3005,171.76,171.66,1.42669368]
[1641014106176,1.3005,171.76,171.68,8.7365]
[1641014106578,2.95691056,171.76,171.68,8.9965]
[1641014107179,10.0372,171.76,171.68,8.9965]
[1641014107378,1.3005,171.76,171.68,8.9965]
[1641014108678,1.3005,171.76,171.68,10.42319368]
[1641014110481,1.3005,171.76,171.68,8.9965]
[1641014111683,1.3005,171.76,171.68,8.7365]
[1641014112484,1.3005,171.76,171.68,10.16319368]
[1641014112686,1.3005,171.76,171.68,8.7365]
[1641014113087,1.3005,171.76,171.68,8.9965]
[1641014113287,2.95691056,171.76,171.68,8.9965]
[1641014114788,1.3005,171.76,171.68,8.9965]
[1641014115990,1.5605,171.76,171.68,8.9965]
[1641014116190,1.5605,171.76,171.68,0.26]
[1641014116191,3.71691056,171.76,171.68,0.26]
[1641014116592,3.71691056,171.76,171.67,10.2884]
[1641014117593,12.45361056,171.76,171.67,10.2884]
[1641014117795,11.95361056,171.76,171.67,10.2884]
[1641014119495,12.45361056,171.76,171.67,10.2884]
[1641014120095,12.45361056,171.76,171.67,1.551]
[1641014120495,12.19361056,171.76,171.67,1.551]
[1641014120898,12.45361056,171.76,171.67,1.551]
[1641014121095,12.45361056,171.76,171.67,0.26]
[1641014121296,1.65641056,171.75,171.67,0.26]
[1641014121498,1.91641056,171.75,171.66,0.26]
[1641014121699,2.41641056,171.75,171.66,0.26]
[1641014122096,2.41641056,171.75,171.63,78.1886]
[1641014122296,1.3395,171.74,171.59,8.6844]
[1641014122498,8.7413,171.67,171.6,9.9977]
[1641014122698,8.7413,171.67,171.6,1.2568]
[1641014122900,9.2413,171.67,171.6,1.2568]
[1641014123997,9.2413,171.67,171.56,151.3698]
[1641014124399,9.2413,171.67,171.57,1.2966]
[1641014124600,9.2413,171.67,171.6,8.7415]
[1641014125000,8.7413,171.67,171.6,8.7415]
[1641014125400,10.0134,171.68,171.6,8.7415]
[1641014125800,1.2726,171.68,171.6,8.7415]
[1641014126002,1.7726,171.68,171.6,8.7415]
[1641014126402,1.7726,171.68,171.6,9.0015]
[1641014126600,10.5133,171.68,171.6,9.0015]
[1641014127003,10.2733,171.68,171.6,9.0015]
[1641014127201,10.0133,171.68,171.6,9.0015]
[1641014127402,10.5133,171.68,171.6,9.0015]
[1641014127801,1.2726,171.68,171.6,9.0015]
[1641014128607,1.2726,171.68,171.61,1.3561]
[1641014128804,1.2726,171.68,171.62,8.7404]
[1641014129003,1.2726,171.68,171.62,9.0004]
[1641014129403,10.0134,171.68,171.62,9.0004]
[1641014129603,8.7408,171.68,171.62,9.0004]
[1641014130205,8.7408,171.68,171.62,0.26]
[1641014130403,9.2408,171.68,171.62,0.26]
[1641014130612,9.2408,171.68,171.6,0.26]
[1641014130807,8.7408,171.68,171.6,0.26]
[1641014131005,8.7408,171.68,171.58,1.6067]
[1641014131605,8.7408,171.68,171.62,8.7404]
[1641014132005,8.7408,171.68,171.62,9.0004]
[1641014133407,78.8946,171.71,171.62,9.0004]
[1641014133606,1.9932,171.71,171.62,9.0004]
[1641014134606,8.7402,171.69,171.62,9.0004]
[1641014135809,1.2332,171.71,171.62,9.0004]
[1641014136009,29.03,171.77,171.62,9.0004]
[1641014136208,1.2332,171.75,171.63,1.3075]
[1641014136411,1.2332,171.75,171.67,8.7377]
[1641014136610,1.7332,171.75,171.67,8.9977]
[1641014136814,8.7381,171.73,171.67,8.9977]
[1641014137210,9.2381,171.73,171.67,8.9977]
[1641014137609,9.2381,171.73,171.67,0.26]
[1641014138008,9.2381,171.73,171.66,8.7385]
[1641014138211,9.4981,171.73,171.61,23.77700382]
[1641014138409,9.2381,171.73,171.61,23.77700382]
[1641014138609,9.4981,171.73,171.61,23.77700382]
[1641014139011,11.88511056,171.73,171.61,23.77700382]
[1641014139209,12.12511056,171.73,171.61,23.77700382]
[1641014139414,11.62511056,171.73,171.62,29.1274]
[1641014139608,11.62511056,171.73,171.62,36.2671]
[1641014140211,11.62511056,171.73,171.62,36.5271]
[1641014140409,1.2306,171.73,171.62,36.5271]
[1641014140609,1.2306,171.73,171.67,8.738]
[1641014141009,1.2306,171.73,171.67,8.998]
[1641014147217,8.7371,171.75,171.67,8.998]
[1641014147414,9.2371,171.75,171.67,8.998]
[1641014147613,9.4971,171.75,171.67,8.998]
[1641014153522,8.9971,171.75,171.67,8.998]
[1641014153720,0.26,171.75,171.67,8.998]
[1641014154122,10.2863,171.76,171.67,8.998]
[1641014155823,1.2897,171.76,171.67,8.998]
[1641014156223,1.2897,171.76,171.68,1.2496]
[1641014156424,1.2897,171.76,171.71,8.7359]
[1641014156624,8.7361,171.77,171.71,8.9959]
[1641014157825,8.7361,171.77,171.71,0.26]
[1641014158023,8.7361,171.77,171.7,8.9962]
[1641014158224,10.39251056,171.77,171.7,8.9962]
[1641014158826,10.89251056,171.77,171.7,8.9962]
[1641014160727,10.89251056,171.77,171.7,0.26]
[1641014161129,10.89251056,171.77,171.68,1.5096]
[1641014161327,1.65641056,171.76,171.68,1.2496]
[1641014161526,10.39301056,171.76,171.68,1.5096]
[1641014161927,10.89301056,171.76,171.68,1.5096]
[1641014162130,10.5536,171.76,171.68,1.5096]
[1641014162529,10.5536,171.76,171.68,1.2496]
[1641014162730,10.8136,171.76,171.68,1.2496]
[1641014163132,10.39301056,171.76,171.68,1.2496]
[1641014163330,1.65641056,171.76,171.68,1.2496]
[1641014163731,11.65981056,171.77,171.68,1.2496]
[1641014163932,11.65981056,171.77,171.68,1.5096]
[1641014164131,11.65981056,171.77,171.68,1.2496]
[1641014164331,11.65981056,171.77,171.68,1.5096]
[1641014164533,12.15981056,171.77,171.68,1.5096]
[1641014164735,12.15981056,171.77,171.68,10.2466]
[1641014165132,11.65981056,171.77,171.68,10.2466]
[1641014168433,11.91981056,171.77,171.68,10.2466]
[1641014170862,11.65981056,171.77,171.68,10.2466]
[1641014171962,12.41981056,171.77,171.68,10.2466]
[1641014172963,10.7634,171.77,171.68,10.2466]
[1641014175570,10.7634,171.77,171.68,1.5096]
[1641014175967,1.65641056,171.75,171.68,1.5096]
[1641014176168,10.39391056,171.75,171.68,1.5096]
[1641014176370,11.15391056,171.75,171.68,1.5096]
[1641014176769,10.39391056,171.75,171.68,1.5096]
[1641014176969,1.65641056,171.75,171.68,1.5096]
[1641014177171,1.65641056,171.76,171.68,1.5096]
[1641014177971,2.92371056,171.77,171.68,1.5096]
[1641014178176,3.68371056,171.77,171.68,1.5096]
[1641014178576,8.7366,171.76,171.68,10.2467]
[1641014178771,8.7366,171.76,171.68,1.5096]
[1641014178972,9.4966,171.76,171.68,1.5096]
[1641014179273,9.4966,171.76,171.64,158.775]
[1641014179474,1.65641056,171.75,171.64,158.775]